[Event "*** SCC Grand Prix: Titled Tuesday Blitz"]
[Site "Chess.com"]
[Date "2020.06.02"]
[Round "4"]
[White "northridgehawk"]
[Black "PlotnikovPavel"]
[Result "1/2-1/2"]
[WhiteElo "2281"]
[BlackElo "2442"]
[TimeControl "180+1"]
[EndTime "10:40:08 PDT"]
[Termination "Game drawn by repetition"]

1. e4 {[%clk 0:03:00.9]} 1... e6 {[%clk 0:03:00]} 2. Nc3 {[%clk 0:03:00]} 2...
d5 {[%clk 0:02:59.7]} 3. Nf3 {[%clk 0:03:00.3]} 3... dxe4 {[%clk 0:02:59]} 4.
Nxe4 {[%clk 0:03:01.2]} 4... Nd7 {[%clk 0:02:59.5]} 5. d4 {[%clk 0:03:00.5]}
5... Ngf6 {[%clk 0:03:00.4]} 6. Nxf6+ {[%clk 0:02:58.8]} 6... Nxf6 {[%clk
0:03:00.1]} 7. Bd3 {[%clk 0:02:59.7]} 7... Be7 {[%clk 0:02:58.4]} 8. O-O {[%clk
0:03:00.2]} 8... O-O {[%clk 0:02:56.5]} 9. Qe2 {[%clk 0:03:00.6]} 9... b6 {[%clk
0:02:56.4]} 10. Rd1 {[%clk 0:02:58]} 10... Bb7 {[%clk 0:02:55.9]} 11. Bf4 {[%clk
0:02:58.4]} 11... Nd5 {[%clk 0:02:39]} 12. Bg3 {[%clk 0:02:55.3]} 12... g6
{[%clk 0:02:22.2]} 13. Ne5 {[%clk 0:02:52.1]} 13... Bf6 {[%clk 0:02:19.9]} 14.
Be4 {[%clk 0:02:42.8]} 14... Qc8 {[%clk 0:02:16.3]} 15. h4 {[%clk 0:02:35.3]}
15... Bg7 {[%clk 0:02:14.2]} 16. h5 {[%clk 0:02:34.9]} 16... Nf6 {[%clk
0:02:12.8]} 17. Bxb7 {[%clk 0:02:30.4]} 17... Qxb7 {[%clk 0:02:13.7]} 18. hxg6
{[%clk 0:02:30.3]} 18... hxg6 {[%clk 0:02:14.6]} 19. c3 {[%clk 0:02:24.4]} 19...
Qe4 {[%clk 0:02:14.3]} 20. Qd2 {[%clk 0:01:57.8]} 20... Rfd8 {[%clk 0:02:07.2]}
21. f3 {[%clk 0:01:56.4]} 21... Qd5 {[%clk 0:02:06.1]} 22. Qe2 {[%clk
0:01:52.1]} 22... Nh5 {[%clk 0:02:03.7]} 23. Bh2 {[%clk 0:01:50.9]} 23... Re8
{[%clk 0:01:16.4]} 24. Ng4 {[%clk 0:01:48.9]} 24... c5 {[%clk 0:01:10.4]} 25.
Be5 {[%clk 0:01:40.6]} 25... Rad8 {[%clk 0:01:07.9]} 26. Bxg7 {[%clk 0:01:39.9]}
26... Kxg7 {[%clk 0:01:07.1]} 27. Qe3 {[%clk 0:01:39.4]} 27... cxd4 {[%clk
0:01:02.3]} 28. Rxd4 {[%clk 0:01:36.3]} 28... Qc5 {[%clk 0:01:01.4]} 29. b4
{[%clk 0:01:26.5]} 29... Qf5 {[%clk 0:00:58.1]} 30. Rad1 {[%clk 0:01:24.7]}
30... Rxd4 {[%clk 0:00:56.4]} 31. Rxd4 {[%clk 0:01:25.6]} 31... e5 {[%clk
0:00:54.4]} 32. Rd5 {[%clk 0:01:18.6]} 32... Nf6 {[%clk 0:00:46.8]} 33. Nxf6
{[%clk 0:01:00.4]} 33... Qxf6 {[%clk 0:00:47.7]} 34. c4 {[%clk 0:00:56]} 34...
Qe6 {[%clk 0:00:37.4]} 35. Qe4 {[%clk 0:00:51.7]} 35... f5 {[%clk 0:00:32.8]}
36. Qe3 {[%clk 0:00:51.6]} 36... e4 {[%clk 0:00:32.2]} 37. Qd4+ {[%clk
0:00:51.2]} 37... Kg8 {[%clk 0:00:28.8]} 38. Rd6 {[%clk 0:00:49.4]} 38... Qe5
{[%clk 0:00:24.3]} 39. Rxg6+ {[%clk 0:00:48.5]} 39... Kf7 {[%clk 0:00:24.5]} 40.
Qxe5 {[%clk 0:00:40.3]} 40... Rxe5 {[%clk 0:00:25.4]} 41. Rd6 {[%clk 0:00:39.1]}
41... Ke7 {[%clk 0:00:23.4]} 42. Rd4 {[%clk 0:00:37.4]} 42... exf3 {[%clk
0:00:23.1]} 43. gxf3 {[%clk 0:00:38.3]} 43... Re3 {[%clk 0:00:23.3]} 44. Kf2
{[%clk 0:00:37.4]} 44... Ra3 {[%clk 0:00:23.3]} 45. Rd2 {[%clk 0:00:34.9]} 45...
Rc3 {[%clk 0:00:20.2]} 46. Rd4 {[%clk 0:00:33]} 46... Rc2+ {[%clk 0:00:19.7]}
47. Ke3 {[%clk 0:00:33.2]} 47... Rxa2 {[%clk 0:00:19.9]} 48. Kf4 {[%clk
0:00:33.7]} 48... Ke6 {[%clk 0:00:19.4]} 49. b5 {[%clk 0:00:31.5]} 49... Ra4
{[%clk 0:00:18.7]} 50. Kg5 {[%clk 0:00:28.5]} 50... Ke5 {[%clk 0:00:18.3]} 51.
Rd5+ {[%clk 0:00:28.4]} 51... Ke6 {[%clk 0:00:18.7]} 52. Rd4 {[%clk 0:00:28.5]}
52... Ke5 {[%clk 0:00:18.1]} 53. Rh4 {[%clk 0:00:28.2]} 53... Rb4 {[%clk
0:00:15.3]} 54. Rf4 {[%clk 0:00:26.6]} 54... Ke6 {[%clk 0:00:14.3]} 55. Rh4
{[%clk 0:00:23.1]} 55... Ra4 {[%clk 0:00:13.8]} 56. Rd4 {[%clk 0:00:18.5]}
1/2-1/2

[Event "*** SCC Grand Prix: Titled Tuesday Blitz"]
[Site "Chess.com"]
[Date "2020.06.02"]
[Round "4"]
[White "Sam_ChessMood"]
[Black "mbojan"]
[Result "1/2-1/2"]
[WhiteElo "2843"]
[BlackElo "2617"]
[TimeControl "180+1"]
[EndTime "10:40:09 PDT"]
[Termination "Game drawn by repetition"]

1. e4 {[%clk 0:03:00.9]} 1... c5 {[%clk 0:02:57.6]} 2. Nf3 {[%clk 0:03:00.6]}
2... Nc6 {[%clk 0:02:56.6]} 3. d4 {[%clk 0:03:00.4]} 3... cxd4 {[%clk
0:02:57.5]} 4. Nxd4 {[%clk 0:03:01.1]} 4... Nf6 {[%clk 0:02:57.9]} 5. Nc3 {[%clk
0:03:01.3]} 5... e5 {[%clk 0:02:58.2]} 6. Ndb5 {[%clk 0:03:01.5]} 6... d6 {[%clk
0:02:58.5]} 7. Nd5 {[%clk 0:03:01.9]} 7... Nxd5 {[%clk 0:02:58.3]} 8. exd5
{[%clk 0:03:02.8]} 8... Nb8 {[%clk 0:02:58.7]} 9. a4 {[%clk 0:02:56.7]} 9... Be7
{[%clk 0:02:58.4]} 10. Be2 {[%clk 0:02:57]} 10... O-O {[%clk 0:02:58.5]} 11. O-O
{[%clk 0:02:57.2]} 11... Nd7 {[%clk 0:02:58.8]} 12. Bd2 {[%clk 0:02:57.6]} 12...
f5 {[%clk 0:02:53.8]} 13. a5 {[%clk 0:02:57.3]} 13... e4 {[%clk 0:02:46.1]} 14.
Nd4 {[%clk 0:02:16.8]} 14... Ne5 {[%clk 0:02:44.1]} 15. a6 {[%clk 0:02:16.8]}
15... b6 {[%clk 0:02:27.6]} 16. f4 {[%clk 0:02:04.7]} 16... exf3 {[%clk
0:02:26.3]} 17. Bxf3 {[%clk 0:02:05.1]} 17... Nxf3+ {[%clk 0:02:03.7]} 18. Qxf3
{[%clk 0:02:04.5]} 18... Bf6 {[%clk 0:02:03.8]} 19. Nc6 {[%clk 0:02:00.4]} 19...
Qc7 {[%clk 0:02:03.9]} 20. Bc3 {[%clk 0:01:50.2]} 20... Bxc3 {[%clk 0:01:42]}
21. Qxc3 {[%clk 0:01:49.7]} 21... Kh8 {[%clk 0:01:39.7]} 22. Rae1 {[%clk
0:01:42.9]} 22... Qf7 {[%clk 0:01:01.5]} 23. Re7 {[%clk 0:01:41.6]} 23... Qg6
{[%clk 0:00:48.3]} 24. Qd3 {[%clk 0:01:18.4]} 24... Re8 {[%clk 0:00:22]} 25.
Rfe1 {[%clk 0:01:08.7]} 25... Bd7 {[%clk 0:00:22.5]} 26. b4 {[%clk 0:00:55.4]}
26... Bxc6 {[%clk 0:00:06.4]} 27. dxc6 {[%clk 0:00:54.8]} 27... Rxe7 {[%clk
0:00:06.9]} 28. Rxe7 {[%clk 0:00:54.5]} 28... Qg5 {[%clk 0:00:07]} 29. Qe3
{[%clk 0:00:48.6]} 29... Qg6 {[%clk 0:00:03.5]} 30. Qe6 {[%clk 0:00:41.8]} 30...
Qh5 {[%clk 0:00:02.5]} 31. Qe2 {[%clk 0:00:31.3]} 31... Qg6 {[%clk 0:00:02.6]}
32. b5 {[%clk 0:00:26.6]} 32... h6 {[%clk 0:00:03]} 33. h3 {[%clk 0:00:23.1]}
33... Kh7 {[%clk 0:00:03.4]} 34. c7 {[%clk 0:00:20.4]} 34... Rc8 {[%clk
0:00:03.6]} 35. Qf3 {[%clk 0:00:14.7]} 35... Qf6 {[%clk 0:00:04]} 36. Rd7 {[%clk
0:00:12.4]} 36... Qe6 {[%clk 0:00:04.4]} 37. Qc6 {[%clk 0:00:07.8]} 37... Qe1+
{[%clk 0:00:04.6]} 38. Kh2 {[%clk 0:00:08.2]} 38... Qe5+ {[%clk 0:00:05.2]} 39.
g3 {[%clk 0:00:08.2]} 39... f4 {[%clk 0:00:05.6]} 40. gxf4 {[%clk 0:00:04.1]}
40... Qxf4+ {[%clk 0:00:06.5]} 41. Kg2 {[%clk 0:00:04.5]} 41... Qg5+ {[%clk
0:00:06.5]} 42. Kh2 {[%clk 0:00:04.3]} 42... Qf4+ {[%clk 0:00:06.7]} 43. Kg2
{[%clk 0:00:04.8]} 43... Qg5+ {[%clk 0:00:06.6]} 44. Kh2 {[%clk 0:00:05.4]}
44... Qf4+ {[%clk 0:00:06.5]} 1/2-1/2

[Event "*** SCC Grand Prix: Titled Tuesday Blitz"]
[Site "Chess.com"]
[Date "2020.06.02"]
[Round "4"]
[White "GM_LOADING"]
[Black "mfwagnerpeixoto"]
[Result "1-0"]
[WhiteElo "2451"]
[BlackElo "2275"]
[TimeControl "180+1"]
[EndTime "10:40:10 PDT"]
[Termination "GM_LOADING won on time"]

1. e4 {[%clk 0:03:00.9]} 1... c5 {[%clk 0:02:58.4]} 2. Nf3 {[%clk 0:03:01]} 2...
Nc6 {[%clk 0:02:56.2]} 3. d4 {[%clk 0:03:01.3]} 3... cxd4 {[%clk 0:02:57.1]} 4.
Nxd4 {[%clk 0:03:02.2]} 4... Nf6 {[%clk 0:02:50.4]} 5. Nc3 {[%clk 0:03:00.7]}
5... e6 {[%clk 0:02:49.9]} 6. Ndb5 {[%clk 0:03:00.1]} 6... Bb4 {[%clk
0:02:48.4]} 7. a3 {[%clk 0:03:00.1]} 7... Bxc3+ {[%clk 0:02:48.3]} 8. Nxc3
{[%clk 0:03:01]} 8... d5 {[%clk 0:02:48.3]} 9. exd5 {[%clk 0:03:01.9]} 9... exd5
{[%clk 0:02:47.9]} 10. Bd3 {[%clk 0:03:02.5]} 10... O-O {[%clk 0:02:47.3]} 11.
O-O {[%clk 0:03:01.9]} 11... d4 {[%clk 0:02:43.9]} 12. Ne2 {[%clk 0:03:01.9]}
12... Bg4 {[%clk 0:02:42.9]} 13. f3 {[%clk 0:02:58.4]} 13... Bh5 {[%clk
0:02:42.7]} 14. Bg5 {[%clk 0:02:58.8]} 14... Qd6 {[%clk 0:02:40.2]} 15. Qd2
{[%clk 0:02:57.6]} 15... Rfe8 {[%clk 0:02:29.7]} 16. Rad1 {[%clk 0:02:52.7]}
16... Rad8 {[%clk 0:02:26.8]} 17. Rfe1 {[%clk 0:02:47.6]} 17... Bg6 {[%clk
0:02:24.1]} 18. Nf4 {[%clk 0:02:04.1]} 18... Rxe1+ {[%clk 0:02:15.8]} 19. Rxe1
{[%clk 0:02:00.9]} 19... Ne5 {[%clk 0:01:57.6]} 20. Bxg6 {[%clk 0:01:37.9]}
20... Nxg6 {[%clk 0:01:55.8]} 21. Nd3 {[%clk 0:01:30.2]} 21... h6 {[%clk
0:01:47.6]} 22. Bxf6 {[%clk 0:01:02.4]} 22... Qxf6 {[%clk 0:01:48.5]} 23. Re4
{[%clk 0:01:02.4]} 23... Qb6 {[%clk 0:01:38.9]} 24. Qb4 {[%clk 0:00:57.7]} 24...
Qc6 {[%clk 0:01:28.8]} 25. Qb3 {[%clk 0:00:51]} 25... Rc8 {[%clk 0:01:22.6]} 26.
Re2 {[%clk 0:00:30.3]} 26... b6 {[%clk 0:01:12.7]} 27. h3 {[%clk 0:00:20.3]}
27... Re8 {[%clk 0:01:00.2]} 28. Nb4 {[%clk 0:00:12.3]} 28... Qd7 {[%clk
0:00:57.2]} 29. Qd3 {[%clk 0:00:09.3]} 29... Rxe2 {[%clk 0:00:44.5]} 30. Qxe2
{[%clk 0:00:09.3]} 30... Nf4 {[%clk 0:00:40.3]} 31. Qe4 {[%clk 0:00:07.3]} 31...
g5 {[%clk 0:00:40]} 32. Nd3 {[%clk 0:00:05.7]} 32... Nxd3 {[%clk 0:00:24.6]} 33.
cxd3 {[%clk 0:00:06.6]} 33... Qa4 {[%clk 0:00:19.8]} 34. Kh2 {[%clk 0:00:06.4]}
34... a5 {[%clk 0:00:16.7]} 35. Qe5 {[%clk 0:00:06]} 35... Kh7 {[%clk
0:00:11.9]} 36. Qc7 {[%clk 0:00:05.6]} 36... Qe8 {[%clk 0:00:06.4]} 37. Qd6
{[%clk 0:00:03.1]} 37... b5 {[%clk 0:00:05]} 38. Qd5 {[%clk 0:00:03.2]} 38...
Qe3 {[%clk 0:00:02.6]} 39. Qxf7+ {[%clk 0:00:03.3]} 39... Kh8 {[%clk 0:00:02.9]}
40. Qf6+ {[%clk 0:00:03.8]} 40... Kh7 {[%clk 0:00:03.3]} 41. Qf5+ {[%clk
0:00:04.4]} 41... Kh8 {[%clk 0:00:03.5]} 42. Qe4 {[%clk 0:00:05.1]} 42... Qf2
{[%clk 0:00:01]} 43. Qe5+ {[%clk 0:00:04.5]} 1-0

[Event "*** SCC Grand Prix: Titled Tuesday Blitz"]
[Site "Chess.com"]
[Date "2020.06.02"]
[Round "4"]
[White "Sjakkerntobi"]
[Black "awesomevishesh"]
[Result "0-1"]
[WhiteElo "2272"]
[BlackElo "2450"]
[TimeControl "180+1"]
[EndTime "10:40:10 PDT"]
[Termination "awesomevishesh won by checkmate"]

1. e4 {[%clk 0:03:00.9]} 1... c5 {[%clk 0:02:59.1]} 2. Nf3 {[%clk 0:03:00.5]}
2... d6 {[%clk 0:02:59.2]} 3. d4 {[%clk 0:03:01.4]} 3... cxd4 {[%clk 0:02:59.3]}
4. Qxd4 {[%clk 0:03:01.6]} 4... Nf6 {[%clk 0:02:56.6]} 5. Nc3 {[%clk 0:02:59.8]}
5... a6 {[%clk 0:02:36.1]} 6. Bg5 {[%clk 0:02:52]} 6... Nc6 {[%clk 0:02:32.8]}
7. Qd2 {[%clk 0:02:51.7]} 7... e6 {[%clk 0:02:32.1]} 8. O-O-O {[%clk 0:02:51.2]}
8... Qc7 {[%clk 0:02:25.8]} 9. Bd3 {[%clk 0:02:45.9]} 9... Be7 {[%clk
0:02:24.7]} 10. h4 {[%clk 0:02:42.3]} 10... b5 {[%clk 0:02:22.8]} 11. a3 {[%clk
0:02:39.7]} 11... b4 {[%clk 0:02:09.9]} 12. axb4 {[%clk 0:02:35.8]} 12... Nxb4
{[%clk 0:02:09.7]} 13. h5 {[%clk 0:02:01.3]} 13... h6 {[%clk 0:02:08.3]} 14. Bf4
{[%clk 0:01:54.7]} 14... e5 {[%clk 0:02:01.4]} 15. Be3 {[%clk 0:01:52]} 15...
Rb8 {[%clk 0:01:57.8]} 16. Rhe1 {[%clk 0:01:31]} 16... Be6 {[%clk 0:01:54]} 17.
Nh4 {[%clk 0:01:06.3]} 17... Qa5 {[%clk 0:01:46.3]} 18. Qe2 {[%clk 0:00:56.3]}
18... Na2+ {[%clk 0:01:30.3]} 19. Nxa2 {[%clk 0:00:52.3]} 19... Qxa2 {[%clk
0:01:31.2]} 20. b3 {[%clk 0:00:43.8]} 20... d5 {[%clk 0:01:10.3]} 21. Ba7 {[%clk
0:00:18.8]} 21... d4 {[%clk 0:00:58.8]} 22. Bxa6 {[%clk 0:00:10.4]} 22... Ba3+
{[%clk 0:00:55]} 23. Kd2 {[%clk 0:00:09.8]} 23... Bb4+ {[%clk 0:00:55.1]} 24.
Kd3 {[%clk 0:00:05.3]} 24... Qxa6+ {[%clk 0:00:54.9]} 25. c4 {[%clk 0:00:06]}
25... dxc3+ {[%clk 0:00:53.4]} 26. Kc2 {[%clk 0:00:06.4]} 26... Qa2+ {[%clk
0:00:48.6]} 27. Kd3 {[%clk 0:00:06.4]} 27... Rd8+ {[%clk 0:00:44.6]} 28. Ke3
{[%clk 0:00:06.9]} 28... Qxa7+ {[%clk 0:00:44.5]} 29. Kf3 {[%clk 0:00:07]} 29...
Bg4+ {[%clk 0:00:44.5]} 30. Kg3 {[%clk 0:00:07.9]} 30... Bxe2 {[%clk 0:00:44.6]}
31. Rxd8+ {[%clk 0:00:08.8]} 31... Kxd8 {[%clk 0:00:44.7]} 32. Rxe2 {[%clk
0:00:09.7]} 32... Qd4 {[%clk 0:00:42.8]} 33. Nf5 {[%clk 0:00:09.8]} 33... Nxe4+
{[%clk 0:00:42.2]} 34. Kh2 {[%clk 0:00:09.2]} 34... Qd3 {[%clk 0:00:42.1]} 35.
Re3 {[%clk 0:00:09.3]} 35... Nxf2 {[%clk 0:00:37.7]} 36. Rxd3+ {[%clk
0:00:07.3]} 36... Nxd3 {[%clk 0:00:37.7]} 37. Ne3 {[%clk 0:00:07.6]} 37... Kd7
{[%clk 0:00:37.3]} 38. Kg3 {[%clk 0:00:07]} 38... Rc8 {[%clk 0:00:36.7]} 39. Nc2
{[%clk 0:00:06]} 39... f5 {[%clk 0:00:36.2]} 40. Kf3 {[%clk 0:00:06.2]} 40...
Ke6 {[%clk 0:00:36]} 41. Ke3 {[%clk 0:00:07.1]} 41... e4 {[%clk 0:00:34.4]} 42.
g4 {[%clk 0:00:08]} 42... Bc5+ {[%clk 0:00:33]} 43. Ke2 {[%clk 0:00:05.8]} 43...
fxg4 {[%clk 0:00:33.1]} 44. Ne3 {[%clk 0:00:05.2]} 44... Bxe3 {[%clk 0:00:32.9]}
45. b4 {[%clk 0:00:05.7]} 45... c2 {[%clk 0:00:33.8]} 46. b5 {[%clk 0:00:06.5]}
46... c1=Q {[%clk 0:00:33.7]} 47. b6 {[%clk 0:00:07.4]} 47... Qe1# {[%clk
0:00:32.7]} 0-1

[Event "*** SCC Grand Prix: Titled Tuesday Blitz"]
[Site "Chess.com"]
[Date "2020.06.02"]
[Round "4"]
[White "oneshot007"]
[Black "BelaKis"]
[Result "1-0"]
[WhiteElo "2425"]
[BlackElo "2206"]
[TimeControl "180+1"]
[EndTime "10:40:10 PDT"]
[Termination "oneshot007 won on time"]

1. e4 {[%clk 0:03:00.9]} 1... e5 {[%clk 0:02:57.1]} 2. Nf3 {[%clk 0:03:00.6]}
2... Nc6 {[%clk 0:02:57.2]} 3. d4 {[%clk 0:03:00.8]} 3... exd4 {[%clk
0:02:56.9]} 4. Nxd4 {[%clk 0:03:01.7]} 4... Nf6 {[%clk 0:02:56.5]} 5. Nxc6
{[%clk 0:03:00.9]} 5... bxc6 {[%clk 0:02:57.4]} 6. e5 {[%clk 0:03:01.2]} 6...
Qe7 {[%clk 0:02:57]} 7. Qe2 {[%clk 0:03:00.5]} 7... Nd5 {[%clk 0:02:56.5]} 8. g3
{[%clk 0:03:00.8]} 8... g6 {[%clk 0:02:42.7]} 9. c4 {[%clk 0:03:00.1]} 9... Ba6
{[%clk 0:02:42]} 10. b3 {[%clk 0:03:00.2]} 10... Bg7 {[%clk 0:02:41.5]} 11. Bb2
{[%clk 0:03:00.5]} 11... O-O {[%clk 0:02:38.9]} 12. Bg2 {[%clk 0:03:00.5]} 12...
Rae8 {[%clk 0:02:32.4]} 13. O-O {[%clk 0:03:00.2]} 13... f6 {[%clk 0:02:02.4]}
14. Qd2 {[%clk 0:02:45.7]} 14... Nb6 {[%clk 0:01:56.8]} 15. exf6 {[%clk
0:02:32.6]} 15... Bxf6 {[%clk 0:01:56.7]} 16. Bxf6 {[%clk 0:02:20.3]} 16... Qxf6
{[%clk 0:01:36]} 17. Na3 {[%clk 0:02:13.3]} 17... c5 {[%clk 0:01:28.1]} 18. Qa5
{[%clk 0:02:09.3]} 18... Nc8 {[%clk 0:00:38.1]} 19. Qxc5 {[%clk 0:02:05.8]}
19... Qb6 {[%clk 0:00:34]} 20. Qd5+ {[%clk 0:01:57.5]} 20... Kg7 {[%clk
0:00:32]} 21. Qxd7+ {[%clk 0:01:56.2]} 21... Re7 {[%clk 0:00:32.2]} 22. Qd3
{[%clk 0:01:47.1]} 22... c5 {[%clk 0:00:31.6]} 23. Rae1 {[%clk 0:01:43.7]} 23...
Rfe8 {[%clk 0:00:30.5]} 24. Rxe7+ {[%clk 0:01:42.4]} 24... Rxe7 {[%clk
0:00:31.4]} 25. Nc2 {[%clk 0:01:38.3]} 25... Bb7 {[%clk 0:00:31.4]} 26. Ne3
{[%clk 0:01:36.5]} 26... Bxg2 {[%clk 0:00:30.4]} 27. Kxg2 {[%clk 0:01:36.5]}
27... Qe6 {[%clk 0:00:28.7]} 28. Nd5 {[%clk 0:01:34.7]} 28... Qe4+ {[%clk
0:00:28.6]} 29. Qf3 {[%clk 0:01:32.1]} 29... Qxf3+ {[%clk 0:00:23.3]} 30. Kxf3
{[%clk 0:01:33]} 30... Rf7+ {[%clk 0:00:23.6]} 31. Kg2 {[%clk 0:01:32.5]} 31...
Nb6 {[%clk 0:00:20.3]} 32. Rd1 {[%clk 0:01:28.4]} 32... Rd7 {[%clk 0:00:19.2]}
33. f4 {[%clk 0:01:24.7]} 33... Kf7 {[%clk 0:00:18.5]} 34. Kf3 {[%clk
0:01:24.6]} 34... Ke6 {[%clk 0:00:18.8]} 35. Ke4 {[%clk 0:01:24.9]} 35... Nxd5
{[%clk 0:00:16.1]} 36. cxd5+ {[%clk 0:01:24.3]} 36... Kd6 {[%clk 0:00:15.9]} 37.
f5 {[%clk 0:01:17.7]} 37... Re7+ {[%clk 0:00:16.8]} 38. Kf4 {[%clk 0:01:18]}
38... Re2 {[%clk 0:00:15.7]} 39. fxg6 {[%clk 0:01:14.3]} 39... hxg6 {[%clk
0:00:16.6]} 40. h4 {[%clk 0:01:11.3]} 40... Rxa2 {[%clk 0:00:14.9]} 41. Kg5
{[%clk 0:01:10.1]} 41... Rg2 {[%clk 0:00:14.9]} 42. Rd3 {[%clk 0:01:09.9]} 42...
a5 {[%clk 0:00:11.8]} 43. Kxg6 {[%clk 0:01:09.2]} 43... c4 {[%clk 0:00:12]} 44.
bxc4 {[%clk 0:01:10.1]} 44... a4 {[%clk 0:00:12.4]} 45. h5 {[%clk 0:01:10.3]}
45... Rb2 {[%clk 0:00:12.1]} 46. c5+ {[%clk 0:01:04.7]} 46... Kxc5 {[%clk
0:00:12.5]} 47. d6 {[%clk 0:01:05]} 47... Rb3 {[%clk 0:00:12.8]} 48. Rd2 {[%clk
0:00:49.6]} 48... Rxg3+ {[%clk 0:00:12.1]} 49. Kh7 {[%clk 0:00:49.7]} 49... Rf3
{[%clk 0:00:08.8]} 50. d7 {[%clk 0:00:48.6]} 50... Rf8 {[%clk 0:00:08.8]} 51.
Kg7 {[%clk 0:00:47.7]} 51... Rd8 {[%clk 0:00:09.7]} 52. h6 {[%clk 0:00:46.6]}
52... Kc4 {[%clk 0:00:10.2]} 53. h7 {[%clk 0:00:46.7]} 53... Kc3 {[%clk
0:00:10.7]} 54. Rd6 {[%clk 0:00:44.6]} 54... a3 {[%clk 0:00:10.3]} 55. h8=Q
{[%clk 0:00:44.2]} 55... Rxh8 {[%clk 0:00:09.5]} 56. Kxh8 {[%clk 0:00:45.1]}
56... a2 {[%clk 0:00:09.7]} 57. Ra6 {[%clk 0:00:44.9]} 57... Kb2 {[%clk
0:00:10.2]} 58. d8=Q {[%clk 0:00:44.5]} 58... a1=Q {[%clk 0:00:09.7]} 59. Qd4+
{[%clk 0:00:44]} 59... Kb3 {[%clk 0:00:07.8]} 60. Rxa1 {[%clk 0:00:42.6]} 1-0

[Event "*** SCC Grand Prix: Titled Tuesday Blitz"]
[Site "Chess.com"]
[Date "2020.06.02"]
[Round "4"]
[White "OnatB"]
[Black "Shushik"]
[Result "1-0"]
[WhiteElo "2332"]
[BlackElo "2156"]
[TimeControl "180+1"]
[EndTime "10:40:11 PDT"]
[Termination "OnatB won by resignation"]

1. e4 {[%clk 0:03:00.9]} 1... e5 {[%clk 0:03:00.1]} 2. d4 {[%clk 0:02:59.3]}
2... exd4 {[%clk 0:02:59.9]} 3. Qxd4 {[%clk 0:02:58.8]} 3... Nc6 {[%clk
0:02:59.4]} 4. Qe3 {[%clk 0:02:59.2]} 4... d6 {[%clk 0:02:52.4]} 5. Nc3 {[%clk
0:02:58.5]} 5... Nf6 {[%clk 0:02:51.7]} 6. Bd2 {[%clk 0:02:58.7]} 6... Be7
{[%clk 0:02:50.9]} 7. f3 {[%clk 0:02:57.1]} 7... Be6 {[%clk 0:02:49.7]} 8. Nge2
{[%clk 0:02:56.6]} 8... O-O {[%clk 0:02:43.4]} 9. Nf4 {[%clk 0:02:56.1]} 9...
Re8 {[%clk 0:02:33.8]} 10. O-O-O {[%clk 0:02:53.4]} 10... Bf8 {[%clk 0:02:32]}
11. Kb1 {[%clk 0:02:44.4]} 11... d5 {[%clk 0:02:18.5]} 12. Bc1 {[%clk
0:02:44.3]} 12... d4 {[%clk 0:02:14.5]} 13. Nxe6 {[%clk 0:02:28.4]} 13... Rxe6
{[%clk 0:02:09.9]} 14. Qg5 {[%clk 0:02:25.4]} 14... Be7 {[%clk 0:01:42.8]} 15.
Qf5 {[%clk 0:01:57.4]} 15... a6 {[%clk 0:01:29.2]} 16. h4 {[%clk 0:01:44.3]}
16... Rd6 {[%clk 0:01:14.6]} 17. Ne2 {[%clk 0:01:22.5]} 17... d3 {[%clk
0:01:13.4]} 18. cxd3 {[%clk 0:01:08.1]} 18... Rxd3 {[%clk 0:01:12.9]} 19. Re1
{[%clk 0:00:58]} 19... Rd1 {[%clk 0:01:07.8]} 20. Rxd1 {[%clk 0:00:52.2]} 20...
Qxd1 {[%clk 0:01:07.3]} 21. Nc3 {[%clk 0:00:53.1]} 21... Nd4 {[%clk 0:00:53.7]}
22. Nxd1 {[%clk 0:00:49.4]} 22... Nxf5 {[%clk 0:00:51.1]} 23. exf5 {[%clk
0:00:50.3]} 23... Rd8 {[%clk 0:00:50.1]} 24. Nc3 {[%clk 0:00:50.3]} 24... Nh5
{[%clk 0:00:45.9]} 25. Ne4 {[%clk 0:00:38]} 25... Rd1 {[%clk 0:00:28.3]} 26. Kc2
{[%clk 0:00:37.5]} 26... Rd8 {[%clk 0:00:24.6]} 27. Bc4 {[%clk 0:00:37.6]} 27...
b5 {[%clk 0:00:23.9]} 28. Bb3 {[%clk 0:00:37.3]} 28... c5 {[%clk 0:00:23.4]} 29.
Kb1 {[%clk 0:00:31.7]} 29... c4 {[%clk 0:00:21.3]} 30. Bc2 {[%clk 0:00:31.9]}
30... Nf6 {[%clk 0:00:19.5]} 31. Nxf6+ {[%clk 0:00:27.8]} 31... Bxf6 {[%clk
0:00:19.7]} 32. a3 {[%clk 0:00:26.1]} 32... Kf8 {[%clk 0:00:19]} 33. g4 {[%clk
0:00:25.8]} 33... Ke7 {[%clk 0:00:15.1]} 34. Re1+ {[%clk 0:00:22.2]} 34... Kf8
{[%clk 0:00:12.7]} 35. g5 {[%clk 0:00:22]} 35... Bd4 {[%clk 0:00:12.6]} 36. Rd1
{[%clk 0:00:21.9]} 36... f6 {[%clk 0:00:11.6]} 37. g6 {[%clk 0:00:20.8]} 37...
hxg6 {[%clk 0:00:11.3]} 38. fxg6 {[%clk 0:00:21.7]} 38... Ke7 {[%clk 0:00:11.2]}
39. h5 {[%clk 0:00:20.3]} 39... Ke6 {[%clk 0:00:11.2]} 40. h6 {[%clk 0:00:20.2]}
40... gxh6 {[%clk 0:00:11]} 41. g7 {[%clk 0:00:19.2]} 41... Kf7 {[%clk
0:00:10.6]} 42. Bxh6 {[%clk 0:00:19.7]} 42... Kg8 {[%clk 0:00:09.2]} 43. Bf5
{[%clk 0:00:17.9]} 43... Rd5 {[%clk 0:00:08.6]} 44. Be6+ {[%clk 0:00:17.7]} 1-0